bitfinex-derivatives/quotes_BTCF0:USTF0_20260111
["timestamp","ask_amount","ask_price","bid_price","bid_amount"]
[1768114053091,0.07,90735.0,90720.0,0.15189734]
[1768114053403,0.07,90735.0,90722.0,0.011035]
[1768114054291,0.07,90735.0,90723.0,0.011035]
[1768114054494,0.07,90735.0,90720.0,0.01877066]
[1768114056196,0.07,90735.0,90723.0,0.011035]
[1768114057797,0.07,90735.0,90724.0,0.011035]
[1768114060399,0.07,90735.0,90721.0,0.011035]
[1768114060905,0.07024832,90735.0,90721.0,0.011035]
[1768114061690,0.08128232,90735.0,90718.0,0.011036]
[1768114061891,0.01128232,90734.0,90718.0,0.011036]
[1768114062091,0.15189734,90730.0,90718.0,0.011036]
[1768114063397,0.15189734,90730.0,90720.0,0.011036]
[1768114064296,0.00024832,90734.0,90720.0,0.011036]
[1768114066496,0.15189734,90730.0,90720.0,0.011036]
[1768114069303,0.15189734,90730.0,90722.0,0.011035]
[1768114071095,0.15189734,90730.0,90716.0,0.011036]
[1768114071295,0.15189734,90730.0,90723.0,0.011035]
[1768114071604,0.00024832,90734.0,90723.0,0.011035]
[1768114072606,0.00024832,90734.0,90720.0,0.011036]
[1768114075707,0.00024832,90734.0,90722.0,0.011035]
[1768114076207,0.15189734,90732.0,90722.0,0.011035]
[1768114078201,0.15189734,90732.0,90720.0,0.011036]
[1768114080311,0.15189734,90732.0,90721.0,0.011035]
[1768114080510,0.00024832,90734.0,90721.0,0.011035]
[1768114084211,0.00034667,90737.0,90716.0,0.01854032]
[1768114084403,0.07034667,90737.0,90716.0,0.01854032]
[1768114084715,0.07034667,90737.0,90717.0,0.00906296]
[1768114085216,0.07034667,90737.0,90721.0,0.011035]
[1768114087816,0.00034667,90737.0,90717.0,0.01816014]
[1768114088004,0.0938,90739.0,90723.0,0.01816014]
[1768114088514,0.0938,90739.0,90723.0,0.00909718]
[1768114088719,0.09415665,90739.0,90720.0,0.15189734]
[1768114089103,0.09415665,90739.0,90724.0,0.011035]
[1768114089315,0.09415665,90739.0,90720.0,0.15189734]
[1768114090218,0.09415665,90739.0,90725.0,0.011035]
[1768114090815,0.09415665,90739.0,90720.0,0.15189734]
[1768114091118,0.00024855,90738.0,90723.0,0.011035]
[1768114091322,0.00024855,90738.0,90725.0,0.011035]
[1768114093224,0.00024855,90738.0,90720.0,0.15189734]
[1768114094024,0.00024855,90738.0,90725.0,0.011035]
[1768114094921,0.00024855,90738.0,90726.0,0.011035]
[1768114097733,0.00024855,90738.0,90720.0,0.00909718]
[1768114098231,0.15189734,90730.0,90720.0,0.00909718]
[1768114099242,0.15189734,90730.0,90720.0,0.02013318]
[1768114099435,0.01126765,90737.0,90720.0,0.02013318]
[1768114100842,0.15189734,90730.0,90720.0,0.02013318]
[1768114101045,0.01126765,90737.0,90720.0,0.02013318]
[1768114103845,0.011034,90735.0,90720.0,0.02013318]
[1768114104346,0.00023365,90737.0,90722.0,0.011035]
[1768114106042,0.011034,90736.0,90721.0,0.011035]
[1768114106248,0.011034,90736.0,90722.0,0.011035]
[1768114107534,0.011034,90736.0,90723.0,0.011035]
[1768114117257,0.011034,90736.0,90721.0,0.00911233]
[1768114117659,0.011034,90736.0,90721.0,0.01819185]
[1768114121260,0.104833,90739.0,90722.0,0.011035]
[1768114122262,0.011034,90738.0,90722.0,0.011035]
[1768114127061,0.011034,90738.0,90723.0,0.011035]
[1768114134267,0.011034,90736.0,90721.0,0.02922785]
[1768114134468,0.0938,90739.0,90721.0,0.02922785]
[1768114134469,0.011034,90738.0,90722.0,0.011035]
[1768114134764,0.011034,90738.0,90723.0,0.011035]
[1768114134966,0.011034,90738.0,90724.0,0.011035]
[1768114141282,0.011034,90738.0,90722.0,0.011035]
[1768114141592,0.011034,90738.0,90723.0,0.011035]
[1768114142383,0.011034,90737.0,90723.0,0.011035]
[1768114144289,0.011034,90735.0,90721.0,0.01819185]
[1768114144485,0.011034,90734.0,90721.0,0.02922685]
[1768114144986,0.011034,90734.0,90721.0,0.01819185]
[1768114146387,0.011034,90734.0,90721.0,0.02922685]
[1768114152096,0.011034,90733.0,90721.0,0.01819185]
[1768114152282,0.011034,90732.0,90721.0,0.01819185]
[1768114153194,0.011034,90734.0,90721.0,0.01819185]
[1768114154288,0.011034,90734.0,90721.0,0.02922685]
[1768114154790,0.011034,90736.0,90722.0,0.011035]
[1768114157792,0.011034,90736.0,90721.0,0.01819185]
[1768114159795,0.011034,90735.0,90721.0,0.01819185]
[1768114168299,0.011034,90735.0,90721.0,0.02922685]
[1768114169202,0.0938,90739.0,90721.0,0.01819185]
[1768114169403,0.1738,90739.0,90721.0,0.01819185]
[1768114170200,0.011034,90735.0,90721.0,0.01819185]
[1768114170602,0.011034,90734.0,90721.0,0.01819185]
[1768114175104,0.011034,90734.0,90721.0,0.02922685]
[1768114176011,0.011034,90736.0,90721.0,0.02922685]
[1768114177714,0.011034,90734.0,90721.0,0.02922685]
[1768114178305,0.011034,90736.0,90721.0,0.02922685]
[1768114178513,0.011034,90736.0,90722.0,0.01889312]
[1768114179102,0.0938,90739.0,90722.0,0.01889312]
[1768114179310,0.011034,90734.0,90722.0,0.01889312]
[1768114188920,0.011034,90736.0,90722.0,0.01889312]
[1768114189323,0.011034,90736.0,90722.0,0.02992812]
[1768114191423,0.0938,90739.0,90722.0,0.02992812]
[1768114191613,0.1638,90739.0,90722.0,0.02992812]
[1768114192421,0.1638,90739.0,90726.0,0.011035]
[1768114193620,0.1638,90739.0,90728.0,0.011035]
[1768114195008,0.1638,90739.0,90729.0,0.011034]
[1768114201726,0.1638,90739.0,90727.0,0.011035]
[1768114207633,0.1638,90739.0,90729.0,0.011035]
[1768114210734,0.16414174,90739.0,90728.0,0.011035]
[1768114212341,0.16414174,90739.0,90726.0,0.011035]
[1768114216435,0.00026539,90738.0,90726.0,0.011035]
[1768114216635,0.07026539,90738.0,90726.0,0.011035]
[1768114218241,0.07026539,90738.0,90719.0,0.28223641]
[1768114218242,0.00026603,90732.0,90719.0,0.28223641]
[1768114218463,0.00983653,90729.0,90719.0,0.21931406]
[1768114218745,0.07983653,90729.0,90719.0,0.21931406]
[1768114221144,0.07,90729.0,90719.0,0.21931406]
[1768114229550,0.07,90729.0,90719.0,0.23035006]
[1768114230560,0.07,90729.0,90719.0,0.21931406]
[1768114237855,0.07,90729.0,90719.0,0.23035006]
[1768114238060,0.10075238,90739.0,90722.0,0.00925073]
[1768114238061,0.011034,90737.0,90722.0,0.00925073]
[1768114238260,0.091034,90737.0,90722.0,0.02028573]
[1768114240866,0.091034,90737.0,90724.0,0.00925073]
[1768114241163,0.08,90737.0,90725.0,0.00925073]
[1768114241551,0.011034,90736.0,90725.0,0.00925073]
[1768114241752,0.091034,90736.0,90725.0,0.00925073]
[1768114242565,0.011034,90735.0,90725.0,0.00925073]
[1768114242765,0.091034,90735.0,90725.0,0.00925073]
[1768114242965,0.091034,90735.0,90721.0,0.00933691]
[1768114243670,0.08,90735.0,90721.0,0.00933691]
[1768114243873,0.011035,90730.0,90721.0,0.00933691]
[1768114244369,0.011035,90728.0,90721.0,0.00933691]
[1768114244560,0.011035,90726.0,90721.0,0.00933691]
[1768114244762,0.011035,90726.0,90721.0,0.01858764]
[1768114244962,0.011035,90726.0,90721.0,0.00925073]
[1768114245162,0.011035,90725.0,90721.0,0.00925073]
[1768114245567,0.011035,90724.0,90721.0,0.00925073]
[1768114245772,0.011035,90724.0,90721.0,7.3e-07]
[1768114246170,0.011035,90724.0,90719.0,0.21931406]
[1768114246669,0.011035,90722.0,90719.0,0.21931406]
[1768114246870,0.011035,90726.0,90719.0,6e-08]
[1768114247061,0.00018708,90737.0,90719.0,6e-08]
[1768114247263,0.011035,90725.0,90719.0,6e-08]
[1768114248273,0.011035,90724.0,90719.0,6e-08]
[1768114253291,0.011035,90727.0,90719.0,6e-08]
[1768114256097,0.011035,90727.0,90716.0,0.00925073]
[1768114257497,0.011035,90729.0,90716.0,0.00925073]
[1768114259301,0.011035,90728.0,90716.0,0.00925073]
[1768114260101,0.00028288,90733.0,90716.0,0.00925073]
[1768114260300,0.07028288,90733.0,90716.0,0.00925073]
[1768114260800,0.011035,90727.0,90716.0,0.00925073]
[1768114264303,0.011035,90725.0,90716.0,0.00925073]
[1768114268306,0.011035,90727.0,90716.0,0.00925073]
[1768114268608,0.00028288,90733.0,90716.0,0.00925073]
[1768114268816,0.08028288,90733.0,90716.0,0.00925073]
[1768114270310,0.011035,90729.0,90716.0,0.00925073]
[1768114270811,0.011035,90727.0,90716.0,0.00925073]
[1768114273113,0.011035,90726.0,90716.0,0.00925073]
[1768114274510,0.011035,90728.0,90716.0,0.00925073]
[1768114276411,0.00028288,90733.0,90716.0,0.00925073]
[1768114276412,0.011035,90727.0,90716.0,0.00925073]
[1768114279412,0.011035,90729.0,90716.0,0.00925073]
[1768114289418,0.011035,90728.0,90716.0,0.00925073]
[1768114297623,0.011035,90727.0,90716.0,0.00925073]
[1768114305121,0.15190742,90730.0,90716.0,0.00925073]
[1768114305122,0.011035,90730.0,90716.0,0.00925073]
[1768114305425,0.15190742,90730.0,90716.0,0.00925073]
[1768114306130,0.011035,90729.0,90716.0,0.00925073]
[1768114308524,0.011035,90728.0,90716.0,0.00925073]
[1768114324444,0.16294142,90730.0,90716.0,0.00925073]
[1768114324743,0.011035,90729.0,90716.0,0.00925073]
[1768114329044,0.15190742,90730.0,90716.0,0.00925073]
[1768114329247,0.011035,90728.0,90716.0,0.00925073]
[1768114330835,0.16294142,90730.0,90716.0,0.01850475]
[1768114331135,0.011035,90729.0,90716.0,0.00925073]
[1768114332245,0.15190742,90730.0,90716.0,0.00925073]
[1768114332442,0.16294242,90730.0,90716.0,0.00925073]
[1768114334944,0.011035,90730.0,90716.0,0.00925073]
[1768114335152,0.00029298,90737.0,90719.0,0.02029002]
[1768114335360,0.011034,90734.0,90719.0,0.00925402]
[1768114335538,0.011034,90734.0,90718.0,0.00915528]
[1768114340256,0.011034,90733.0,90718.0,0.00915528]
[1768114341161,0.011034,90732.0,90718.0,0.00915528]
[1768114341558,0.15190742,90730.0,90718.0,0.00915528]
[1768114343960,0.15190742,90730.0,90715.0,0.00925402]
[1768114344150,0.15190742,90730.0,90715.0,0.02029002]
[1768114345462,0.16294242,90730.0,90715.0,0.02029002]
[1768114348565,0.011034,90732.0,90716.0,0.011036]
[1768114357067,0.00010193,90733.0,90714.0,0.01847147]
[1768114357274,0.011034,90731.0,90716.0,0.011036]
[1768114359670,0.011034,90731.0,90714.0,0.02950747]
[1768114359969,0.011034,90731.0,90715.0,0.011036]
[1768114384812,0.011035,90729.0,90714.0,0.01847147]
[1768114385282,0.011035,90729.0,90714.0,0.02950747]
[1768114393602,0.011034,90731.0,90715.0,0.011036]
[1768114395303,0.011034,90731.0,90716.0,0.011036]
[1768114401107,0.01113593,90733.0,90716.0,0.011036]
[1768114402111,0.011034,90732.0,90716.0,0.011036]
[1768114408521,0.15189812,90730.0,90716.0,0.011036]
[1768114415627,0.011034,90732.0,90716.0,0.011036]
[1768114415828,0.15189812,90730.0,90716.0,0.011036]
[1768114416736,0.02069558,90755.0,90730.0,0.01961054]
[1768114416934,0.011032,90753.0,90733.0,0.03064454]
[1768114417227,0.15189812,90750.0,90735.0,0.011034]
[1768114417532,0.08,90750.0,90737.0,0.011034]
[1768114418230,0.02069558,90755.0,90740.0,0.15189812]
[1768114418438,0.07966458,90755.0,90740.0,0.15189812]
[1768114418925,0.07966458,90755.0,90735.0,0.00974643]
[1768114419131,0.07,90755.0,90740.0,0.16293112]
[1768114419427,0.07,90755.0,90740.0,0.15189812]
[1768114419628,0.07,90755.0,90738.0,0.01961054]
[1768114420024,0.011032,90754.0,90738.0,0.01961054]
[1768114420225,0.081032,90754.0,90738.0,0.01961054]
[1768114420433,0.07,90754.0,90738.0,0.03064354]
[1768114420636,0.07,90754.0,90738.0,0.01961054]
[1768114420831,0.011032,90753.0,90738.0,0.01961054]
[1768114421034,0.081032,90753.0,90738.0,0.01961054]
[1768114421632,0.081032,90753.0,90738.0,0.00974643]
[1768114423633,0.07,90753.0,90738.0,0.00974643]
[1768114427437,0.07,90753.0,90735.0,0.02089811]
[1768114427838,0.00966458,90789.0,90761.0,0.00986411]
[1768114428044,0.00966458,90784.0,90770.0,0.15189812]
[1768114428439,0.00550755,90785.0,90770.0,0.15189812]
[1768114428836,0.00550755,90785.0,90773.0,0.011029]
[1768114429340,0.00550755,90785.0,90775.0,0.011029]
[1768114430541,0.00550755,90785.0,90772.0,0.011029]
[1768114433638,0.00550755,90785.0,90771.0,0.011029]
[1768114436148,0.00550755,90785.0,90773.0,0.011029]
[1768114436852,0.00550755,90785.0,90770.0,0.01103]
[1768114437054,0.00550755,90785.0,90772.0,0.011029]
[1768114437351,0.00550755,90785.0,90770.0,0.15189812]
[1768114438052,0.00550755,90785.0,90768.0,0.02006514]
[1768114438352,0.00550755,90785.0,90770.0,0.15189812]
[1768114438653,0.00550755,90785.0,90768.0,0.00903514]
[1768114438852,0.00550755,90785.0,90770.0,0.15189812]
[1768114439851,0.00550755,90785.0,90768.0,0.00903514]
[1768114440054,0.00550755,90785.0,90771.0,0.011029]
[1768114441253,0.00550755,90785.0,90770.0,0.15189812]
[1768114442056,0.00550755,90785.0,90771.0,0.011029]
[1768114443954,0.00550755,90785.0,90769.0,0.02047903]
[1768114444347,0.01653555,90785.0,90769.0,0.02047903]
[1768114444540,0.01653555,90785.0,90769.0,0.03043256]
[1768114446556,0.01653555,90785.0,90770.0,0.15189812]
[1768114447553,0.01653555,90785.0,90770.0,0.16134715]
[1768114447857,0.01653555,90785.0,90770.0,0.17130068]
[1768114451247,0.01653555,90785.0,90771.0,0.011029]
[1768114458565,0.011028,90784.0,90771.0,0.011029]
[1768114458760,0.011028,90784.0,90770.0,0.01940256]
[1768114459059,0.011028,90784.0,90770.0,0.18232968]
[1768114459764,0.00550755,90785.0,90773.0,0.03043156]
[1768114459963,0.00550755,90785.0,90774.0,0.00944903]
[1768114461171,0.01653555,90785.0,90774.0,0.00944903]
[1768114462360,0.01653555,90785.0,90773.0,0.00995353]
[1768114463584,0.011028,90783.0,90773.0,0.00995353]
[1768114466763,0.01653555,90785.0,90773.0,0.00995353]
[1768114473080,0.00550755,90785.0,90773.0,0.00995353]
[1768114473278,0.00550755,90785.0,90774.0,0.011029]
[1768114473585,0.00550755,90785.0,90775.0,0.00944903]
[1768114473778,0.09376,90792.0,90776.0,0.01929128]
[1768114473982,0.10376,90792.0,90777.0,0.00998528]
[1768114474378,0.02543867,90791.0,90777.0,0.00998528]
[1768114474678,0.01,90791.0,90777.0,0.00998528]
[1768114475267,0.011027,90790.0,90777.0,0.00998528]
[1768114475488,0.021027,90790.0,90777.0,0.00998528]
[1768114475872,0.011027,90788.0,90777.0,0.00998528]
[1768114476871,0.09376,90792.0,90777.0,0.00998528]
[1768114477073,0.09376,90792.0,90778.0,0.011029]
[1768114477375,0.09376,90792.0,90779.0,0.011028]
[1768114477983,0.09376,90792.0,90777.0,0.01929128]
[1768114478484,0.09376,90792.0,90777.0,0.03032028]
[1768114479484,0.09376,90792.0,90778.0,0.011028]
[1768114479682,0.09376,90792.0,90782.0,0.011028]
[1768114479887,0.09376,90792.0,90778.0,0.00998528]
[1768114480384,0.011026,90796.0,90779.0,0.011028]
[1768114480772,0.011027,90795.0,90778.0,0.03032028]
[1768114481881,0.011027,90795.0,90778.0,0.01929128]
[1768114482078,0.011027,90795.0,90780.0,0.011028]
[1768114484391,0.011026,90797.0,90780.0,0.011028]
[1768114484691,0.011026,90797.0,90781.0,0.011028]
[1768114485487,0.011026,90797.0,90781.0,0.02101328]
[1768114485788,0.011026,90797.0,90782.0,0.011028]
[1768114486282,0.00242297,90798.0,90782.0,0.011028]
[1768114488290,0.011026,90797.0,90782.0,0.011028]
[1768114489191,0.011026,90797.0,90783.0,0.01929128]
[1768114491690,0.011027,90795.0,90783.0,0.01929128]
[1768114492082,0.011027,90795.0,90783.0,0.009306]
[1768114495891,0.00242297,90798.0,90783.0,0.009306]
[1768114496096,0.011027,90794.0,90783.0,0.009306]
[1768114498292,0.011026,90796.0,90783.0,0.009306]
[1768114499593,0.01344897,90798.0,90783.0,0.020334]
[1768114501488,0.011026,90797.0,90783.0,0.020334]
[1768114502599,0.011026,90797.0,90783.0,0.009306]
[1768114504696,0.011027,90796.0,90783.0,0.009306]
[1768114509907,0.01344897,90798.0,90783.0,0.009306]
[1768114511107,0.00242297,90798.0,90783.0,0.009306]
[1768114512209,0.011027,90796.0,90783.0,0.009306]
[1768114523318,0.01344897,90798.0,90783.0,0.009306]
[1768114533420,0.011026,90797.0,90783.0,0.009306]
[1768114539527,0.011027,90795.0,90783.0,0.009306]
[1768114543426,0.011026,90797.0,90783.0,0.009306]
[1768114543734,0.00242297,90798.0,90783.0,0.009306]
[1768114544119,0.01344897,90798.0,90783.0,0.009306]
[1768114544318,0.011026,90797.0,90783.0,0.009306]
[1768114544829,0.011027,90796.0,90783.0,0.009306]
[1768114549123,0.01344897,90798.0,90783.0,0.009306]
[1768114551631,0.01344897,90798.0,90783.0,0.01863237]
[1768114552437,0.011026,90797.0,90783.0,0.01863237]
[1768114560142,0.00242297,90798.0,90783.0,0.02966037]
[1768114561242,0.011026,90797.0,90783.0,0.02966037]
[1768114561439,0.011027,90796.0,90783.0,0.01863237]
[1768114565542,0.011027,90795.0,90783.0,0.01863237]
[1768114566244,0.011027,90796.0,90783.0,0.01863237]
[1768114573058,0.011027,90796.0,90784.0,0.00930314]
[1768114575060,0.011027,90795.0,90784.0,0.00930314]
[1768114576759,0.011027,90795.0,90783.0,0.009306]
[1768114577462,0.011026,90797.0,90783.0,0.009306]
[1768114580262,0.011026,90797.0,90787.0,0.01840713]
[1768114580960,0.011026,90797.0,90787.0,0.00910399]
[1768114583164,0.00242297,90798.0,90787.0,0.00910399]
[1768114584755,0.01344897,90798.0,90787.0,0.00910399]
[1768114585753,0.011026,90796.0,90787.0,0.00910399]
[1768114586762,0.00242297,90798.0,90789.0,0.01840713]
[1768114586966,0.00242297,90798.0,90786.0,0.15167621]
[1768114586967,0.011026,90801.0,90790.0,0.01840713]
[1768114588151,0.011026,90803.0,90790.0,0.01840713]
[1768114588352,0.02601246,90802.0,90790.0,0.01840713]
[1768114588555,0.011026,90803.0,90790.0,0.01840713]
[1768114588853,0.011026,90801.0,90790.0,0.01840713]
[1768114589750,0.011026,90800.0,90790.0,0.01840713]
[1768114590967,0.011026,90799.0,90790.0,0.01840713]
[1768114591158,0.011026,90802.0,90790.0,0.01840713]
[1768114591359,0.011026,90801.0,90790.0,0.01840713]
[1768114591858,0.09372,90804.0,90790.0,0.01840713]
[1768114592059,0.02601086,90803.0,90790.0,0.01840713]
[1768114592266,0.09372,90804.0,90790.0,0.01840713]
[1768114592566,0.0260105,90803.0,90790.0,0.01840713]
[1768114592767,0.09372,90804.0,90790.0,0.01840713]
[1768114593068,0.011026,90799.0,90790.0,0.01840713]
[1768114594769,0.09372,90804.0,90790.0,0.01840713]
[1768114594770,0.011026,90801.0,90790.0,0.01840713]
[1768114597774,0.104745,90804.0,90792.0,0.00933791]
[1768114598362,0.09372,90804.0,90792.0,0.03027151]
[1768114598574,0.09372,90804.0,90793.0,0.00933791]
[1768114598873,0.09372,90804.0,90794.0,0.01924451]
[1768114600170,0.011024,90817.0,90796.0,0.00933791]
[1768114600377,0.011025,90806.0,90796.0,0.01924451]
[1768114600873,0.011025,90806.0,90796.0,0.0099066]
[1768114601270,0.011025,90809.0,90796.0,0.0099066]
[1768114601775,0.011025,90806.0,90796.0,0.0099066]
[1768114603977,0.011025,90804.0,90796.0,0.0099066]
[1768114605179,0.10291916,90816.0,90796.0,0.0099066]
[1768114605384,0.0370117,90815.0,90796.0,0.0099066]
[1768114605587,0.0259877,90814.0,90796.0,0.0099066]
[1768114605773,0.011025,90805.0,90796.0,0.0099066]
[1768114606088,0.011026,90803.0,90796.0,0.0099066]
[1768114606275,0.011026,90803.0,90792.0,0.00933791]
[1768114606579,0.011026,90802.0,90792.0,0.00933791]
[1768114607479,0.011026,90801.0,90792.0,0.00933791]
[1768114607683,0.011026,90800.0,90792.0,0.00933791]
[1768114607884,0.011026,90800.0,90791.0,0.0099066]
[1768114611289,0.00919916,90802.0,90785.0,0.00550755]
[1768114611481,0.011027,90790.0,90785.0,0.00550755]
[1768114613384,0.011027,90792.0,90785.0,0.00550755]
[1768114614185,0.00919916,90802.0,90785.0,0.00550755]
[1768114614990,0.011027,90792.0,90785.0,0.00550755]
[1768114615391,0.00919916,90802.0,90785.0,0.00550755]
[1768114615589,0.011026,90801.0,90785.0,0.00550755]
[1768114615892,0.011027,90792.0,90785.0,0.00550755]
[1768114619596,0.011027,90791.0,90785.0,0.00550755]
[1768114622800,0.011027,90790.0,90785.0,0.00550755]
[1768114623598,0.011027,90789.0,90785.0,0.00550755]
[1768114623797,0.011027,90788.0,90785.0,0.00550755]
[1768114627015,0.011028,90786.0,90785.0,5.5e-07]
[1768114627603,0.011028,90786.0,90778.0,0.09372]
[1768114631904,0.011027,90788.0,90778.0,0.09372]
[1768114634214,0.011027,90791.0,90778.0,0.09372]
[1768114634415,0.0094829,90795.0,90778.0,0.09372]
[1768114634804,0.011027,90789.0,90778.0,0.09372]
[1768114637914,0.011028,90788.0,90778.0,0.09372]
[1768114641017,0.011028,90783.0,90778.0,0.09372]
[1768114641211,0.0094829,90795.0,90778.0,0.09372]
[1768114641511,0.011028,90783.0,90778.0,0.09372]
[1768114642310,0.011028,90786.0,90776.0,0.00926697]
[1768114642517,0.011028,90785.0,90776.0,0.00926697]
[1768114642814,0.011028,90783.0,90776.0,0.00926697]
[1768114643015,0.011027,90792.0,90776.0,0.00926697]
[1768114643514,0.011027,90792.0,90776.0,0.01828545]
[1768114643813,0.011027,90792.0,90777.0,0.00926697]
[1768114644212,0.011028,90786.0,90777.0,0.00926697]
[1768114645402,0.011028,90784.0,90777.0,0.00926697]
[1768114646721,0.011028,90786.0,90777.0,0.00926697]
[1768114647217,0.011028,90784.0,90777.0,0.00926697]
[1768114647812,0.011028,90783.0,90777.0,0.00926697]
[1768114648414,0.011026,90796.0,90777.0,0.00926697]
[1768114648415,0.011028,90782.0,90777.0,0.01828545]
[1768114649415,0.011028,90787.0,90777.0,0.01828545]
[1768114649716,0.011028,90786.0,90777.0,0.01828545]
[1768114650018,0.011028,90785.0,90777.0,0.00901848]
[1768114653206,0.011028,90787.0,90777.0,0.00901848]
[1768114654913,0.011028,90786.0,90777.0,0.00901848]
[1768114655218,0.011027,90788.0,90777.0,0.00901848]
[1768114661723,0.09372,90795.0,90777.0,0.01805059]
[1768114662022,0.011027,90789.0,90777.0,0.01805059]
[1768114662224,0.09372,90795.0,90777.0,0.01805059]
[1768114662521,0.011027,90792.0,90777.0,0.02907959]
[1768114664721,0.011027,90792.0,90779.0,0.011028]
[1768114666630,0.011027,90794.0,90779.0,0.011028]
[1768114667424,0.011027,90792.0,90777.0,0.02907959]
[1768114667830,0.011027,90792.0,90778.0,0.011029]
[1768114670033,0.09372,90795.0,90777.0,0.01805059]
[1768114670231,0.011027,90792.0,90777.0,0.01805059]
[1768114670433,0.011027,90792.0,90777.0,0.02907959]
[1768114671535,0.011027,90792.0,90778.0,0.011029]
[1768114672939,0.011027,90794.0,90779.0,0.011028]
[1768114673238,0.011027,90794.0,90780.0,0.011028]
[1768114675139,0.09372,90795.0,90781.0,0.011028]
[1768114675338,0.09372,90796.0,90785.0,0.01855236]
[1768114675839,0.09372,90796.0,90785.0,0.00913693]
[1768114676338,0.09372,90796.0,90782.0,0.02044343]
[1768114676940,0.011026,90797.0,90782.0,0.02044343]
[1768114677239,0.09372,90796.0,90782.0,0.02044343]
[1768114678244,0.104747,90796.0,90782.0,0.02044343]
[1768114680240,0.09372,90796.0,90782.0,0.02044343]
[1768114681345,0.09372,90796.0,90782.0,0.011028]
[1768114683146,0.09372,90796.0,90783.0,0.011028]
[1768114691854,0.09372,90796.0,90780.0,0.00913693]
[1768114692055,0.09372,90796.0,90780.0,0.16084355]
[1768114692954,0.09372,90796.0,90780.0,0.00913693]
[1768114693253,0.09372,90796.0,90781.0,0.011028]
[1768114694057,0.09372,90796.0,90782.0,0.011028]
[1768114699464,0.09372,90796.0,90783.0,0.011028]
[1768114701165,0.09372,90796.0,90780.0,0.00913693]
[1768114702161,0.09372,90796.0,90782.0,0.011028]
[1768114702964,0.09372,90796.0,90783.0,0.011028]
[1768114717383,0.09372,90796.0,90780.0,0.00936885]
[1768114717774,0.09372,90796.0,90785.0,0.011028]
[1768114719597,0.011026,90800.0,90785.0,0.011028]
[1768114722597,0.011026,90800.0,90783.0,0.011028]
[1768114722802,0.011026,90799.0,90783.0,0.011028]
[1768114728307,0.10318716,90801.0,90783.0,0.01911163]
[1768114728308,0.104746,90801.0,90783.0,0.01911163]
[1768114729205,0.104746,90801.0,90785.0,0.011028]
[1768114733604,0.104746,90801.0,90786.0,0.011028]
[1768114733605,0.09372,90801.0,90786.0,0.011028]
[1768114735208,0.09372,90801.0,90785.0,0.011028]
[1768114735708,0.09372,90801.0,90783.0,0.01911163]
[1768114735709,0.011026,90800.0,90784.0,0.011028]
[1768114736007,0.09372,90801.0,90783.0,0.03013963]
[1768114736195,0.09372,90801.0,90783.0,0.0206031]
[1768114736707,0.011026,90799.0,90784.0,0.011028]
[1768114736909,0.104746,90801.0,90784.0,0.011028]
[1768114737097,0.011026,90799.0,90784.0,0.011028]
[1768114737297,0.09372,90801.0,90785.0,0.011028]
[1768114737799,0.09372,90801.0,90783.0,0.0095751]
[1768114738512,0.09372,90801.0,90787.0,0.01939506]
[1768114738809,0.09372,90801.0,90787.0,0.00944551]
[1768114739397,0.09372,90801.0,90790.0,0.011027]
[1768114739808,0.00550634,90805.0,90792.0,0.011027]
[1768114740204,0.011025,90804.0,90785.0,0.011028]
[1768114740398,0.011025,90804.0,90783.0,0.011028]
[1768114740399,0.00910031,90803.0,90783.0,0.011028]
[1768114741404,0.00910031,90803.0,90780.0,0.01939506]
[1768114741609,0.011026,90801.0,90784.0,0.011028]
[1768114741809,0.011026,90801.0,90781.0,0.011028]
[1768114742212,0.011026,90801.0,90783.0,0.011028]
[1768114742608,0.011026,90801.0,90780.0,0.01939506]
[1768114744304,0.011026,90801.0,90784.0,0.011028]
[1768114746008,0.011026,90801.0,90786.0,0.011028]
[1768114748608,0.011026,90801.0,90788.0,0.011027]
[1768114748804,0.011026,90802.0,90787.0,0.011027]
[1768114751414,0.011026,90800.0,90787.0,0.011027]
[1768114752425,0.011026,90800.0,90784.0,0.09372]
[1768114752615,0.011026,90799.0,90785.0,0.011028]
[1768114753614,0.011026,90798.0,90784.0,0.09372]
[1768114754419,0.011026,90798.0,90784.0,0.1027466]
[1768114754819,0.011026,90798.0,90784.0,0.1137746]
[1768114757920,0.011026,90798.0,90784.0,0.12364637]
[1768114763723,0.00989876,90797.0,90774.0,0.01889837]
[1768114763923,0.011027,90792.0,90776.0,0.011029]
[1768114764220,0.011027,90794.0,90780.0,0.011028]
[1768114764523,0.011027,90792.0,90778.0,0.01889837]
[1768114765118,0.011027,90792.0,90778.0,0.02992737]
[1768114767721,0.011027,90792.0,90779.0,0.0090266]
[1768114768122,0.02092476,90802.0,90779.0,0.0090266]
[1768114768517,0.02092476,90802.0,90779.0,0.01889837]
[1768114768820,0.11464476,90802.0,90779.0,0.01889837]
[1768114769127,0.011027,90795.0,90780.0,0.01889837]
[1768114769320,0.011027,90795.0,90780.0,0.02992637]
[1768114771824,0.011027,90795.0,90781.0,0.01889837]
[1768114772427,0.11464476,90802.0,90781.0,0.01889837]
[1768114773627,0.011027,90792.0,90781.0,0.01889837]
[1768114780628,0.011027,90791.0,90781.0,0.01889837]
[1768114781533,0.011027,90790.0,90781.0,0.01889837]
[1768114782228,0.011027,90792.0,90782.0,0.01853681]
[1768114782433,0.011026,90799.0,90782.0,0.01853681]
[1768114782730,0.15167609,90800.0,90782.0,0.01853681]
[1768114782931,0.011026,90798.0,90782.0,0.01853681]
[1768114783235,0.011027,90791.0,90782.0,0.01853681]
[1768114784833,0.011026,90799.0,90782.0,0.01853681]
[1768114785734,0.011027,90792.0,90782.0,0.01853681]
[1768114786229,0.011027,90790.0,90775.0,0.09372]
[1768114786436,0.011027,90790.0,90780.0,0.15167609]
[1768114788339,0.011027,90792.0,90780.0,0.15167609]
[1768114788638,0.011026,90798.0,90780.0,0.15167609]
[1768114789240,0.011027,90789.0,90780.0,0.15167609]
[1768114789637,0.011027,90789.0,90780.0,0.16103125]
[1768114791036,0.011027,90788.0,90780.0,0.16103125]
[1768114791541,0.011027,90788.0,90780.0,0.00935516]
[1768114797245,0.011027,90791.0,90780.0,0.00935516]
[1768114798545,0.011027,90791.0,90780.0,0.16103125]